[Event "*** Titled Tuesday Blitz"]
[Site "Chess.com"]
[Date "2021.03.09"]
[Round "1"]
[White "Tekushka"]
[Black "Rud_Makarian"]
[Result "0-1"]
[WhiteElo "2438"]
[BlackElo "2826"]
[TimeControl "180+1"]
[EndTime "10:07:12 PST"]
[Termination "Rud_Makarian won on time"]

1. e4 {[%clk 0:03:00.9]} 1... e5 {[%clk 0:02:55.5]} 2. Nf3 {[%clk 0:03:00.4]}
2... d6 {[%clk 0:02:55.7]} 3. d4 {[%clk 0:02:59.7]} 3... exd4 {[%clk 0:02:56.6]}
4. Nxd4 {[%clk 0:02:59.1]} 4... Nf6 {[%clk 0:02:57.3]} 5. Nc3 {[%clk 0:02:58.8]}
5... Be7 {[%clk 0:02:57.7]} 6. g3 {[%clk 0:02:54.1]} 6... O-O {[%clk 0:02:56]}
7. Bg2 {[%clk 0:02:54.2]} 7... Re8 {[%clk 0:02:55.6]} 8. O-O {[%clk 0:02:53.9]}
8... Bf8 {[%clk 0:02:56.3]} 9. h3 {[%clk 0:02:48]} 9... Na6 {[%clk 0:02:56.6]}
10. Re1 {[%clk 0:02:47.1]} 10... Nc5 {[%clk 0:02:57.1]} 11. Bf4 {[%clk
0:02:20.6]} 11... c6 {[%clk 0:02:37.6]} 12. Qd2 {[%clk 0:02:17.6]} 12... Qb6
{[%clk 0:02:27.6]} 13. Nb3 {[%clk 0:02:11.5]} 13... Qb4 {[%clk 0:01:43.7]} 14.
Nxc5 {[%clk 0:00:41.3]} 14... dxc5 {[%clk 0:01:44.6]} 15. a3 {[%clk 0:00:39.1]}
15... Qd4 {[%clk 0:01:44.1]} 16. Rad1 {[%clk 0:00:35.8]} 16... Qxd2 {[%clk
0:01:43]} 17. Rxd2 {[%clk 0:00:34.5]} 17... Be6 {[%clk 0:01:42.7]} 18. Red1
{[%clk 0:00:29.8]} 18... h6 {[%clk 0:01:41.8]} 19. g4 {[%clk 0:00:29.6]} 19...
g5 {[%clk 0:01:40.7]} 20. Be3 {[%clk 0:00:27.9]} 20... Rac8 {[%clk 0:01:38.7]}
21. f3 {[%clk 0:00:23.2]} 21... b6 {[%clk 0:01:36.9]} 22. Kf2 {[%clk 0:00:22.2]}
22... Be7 {[%clk 0:01:36.2]} 23. Rh1 {[%clk 0:00:17.9]} 23... Nh7 {[%clk
0:01:36.7]} 24. Ne2 {[%clk 0:00:15.5]} 24... Nf8 {[%clk 0:01:36.6]} 25. Ng3
{[%clk 0:00:14.2]} 25... Ng6 {[%clk 0:01:36]} 26. Nf5 {[%clk 0:00:13.4]} 26...
Bf8 {[%clk 0:01:36.6]} 27. h4 {[%clk 0:00:12.1]} 27... Bxf5 {[%clk 0:01:34.8]}
28. gxf5 {[%clk 0:00:08.6]} 28... Nxh4 {[%clk 0:01:35.2]} 29. Bf1 {[%clk
0:00:07.6]} 29... Bg7 {[%clk 0:01:35.1]} 30. c3 {[%clk 0:00:06.1]} 30... Be5
{[%clk 0:01:35.1]} 31. Bc4 {[%clk 0:00:05.3]} 31... Rc7 {[%clk 0:01:33.8]} 32.
Rhd1 {[%clk 0:00:04.6]} 32... Kg7 {[%clk 0:01:33.7]} 33. Rd7 {[%clk 0:00:04.6]}
33... Re7 {[%clk 0:01:34.4]} 34. Rd8 {[%clk 0:00:04.7]} 34... a5 {[%clk
0:01:23.8]} 35. a4 {[%clk 0:00:04.5]} 35... Rb7 {[%clk 0:01:23.6]} 36. Ra8
{[%clk 0:00:04.5]} 36... Red7 {[%clk 0:01:21.9]} 37. Rxd7 {[%clk 0:00:04.2]}
37... Rxd7 {[%clk 0:01:22.8]} 38. Re8 {[%clk 0:00:04.1]} 38... Bf4 {[%clk
0:01:22]} 39. Bxf4 {[%clk 0:00:03.5]} 39... gxf4 {[%clk 0:01:22.9]} 40. Ke2
{[%clk 0:00:03.9]} 40... Kf6 {[%clk 0:01:19.4]} 41. Rb8 {[%clk 0:00:03.7]} 41...
Ng2 {[%clk 0:01:15.5]} 42. Rxb6 {[%clk 0:00:03.4]} 42... h5 {[%clk 0:01:16.2]}
43. Rxc6+ {[%clk 0:00:03.5]} 43... Kg5 {[%clk 0:01:17.1]} 44. Rxc5 {[%clk
0:00:03.6]} 44... h4 {[%clk 0:01:17.4]} 45. Kf2 {[%clk 0:00:03.5]} 45... Rd2+
{[%clk 0:01:16.3]} 46. Kg1 {[%clk 0:00:03.7]} 46... h3 {[%clk 0:01:15.8]} 47.
Kh2 {[%clk 0:00:03.3]} 47... Kh4 {[%clk 0:01:16.3]} 48. f6 {[%clk 0:00:03.1]}
48... Ne3+ {[%clk 0:01:16]} 49. Kh1 {[%clk 0:00:02.4]} 49... Nxc4 {[%clk
0:01:05.5]} 50. Rxc4 {[%clk 0:00:02.1]} 50... Kg3 {[%clk 0:01:05.2]} 51. Rd4
{[%clk 0:00:02.3]} 51... Rh2+ {[%clk 0:01:05.7]} 52. Kg1 {[%clk 0:00:01.9]}
52... Rg2+ {[%clk 0:01:06.5]} 53. Kh1 {[%clk 0:00:02.3]} 53... Rh2+ {[%clk
0:01:07.2]} 54. Kg1 {[%clk 0:00:01.9]} 54... Rxb2 {[%clk 0:01:08.1]} 55. Rd1
{[%clk 0:00:01.5]} 55... Kxf3 {[%clk 0:01:06.3]} 0-1

[Event "*** Titled Tuesday Blitz"]
[Site "Chess.com"]
[Date "2021.03.09"]
[Round "1"]
[White "Chernov_Alexander_A"]
[Black "Sadykov_Ramil"]
[Result "0-1"]
[WhiteElo "2283"]
[BlackElo "2588"]
[TimeControl "180+1"]
[EndTime "10:07:12 PST"]
[Termination "Sadykov_Ramil won by resignation"]

1. Nf3 {[%clk 0:03:00.5]} 1... c5 {[%clk 0:02:51.4]} 2. g3 {[%clk 0:02:59.5]}
2... d5 {[%clk 0:02:44.9]} 3. Bg2 {[%clk 0:02:58.8]} 3... f6 {[%clk 0:02:45.4]}
4. O-O {[%clk 0:02:57.4]} 4... e5 {[%clk 0:02:44.7]} 5. c4 {[%clk 0:02:57.1]}
5... Ne7 {[%clk 0:02:42.6]} 6. d3 {[%clk 0:02:55.2]} 6... Nbc6 {[%clk
0:02:42.1]} 7. Nc3 {[%clk 0:02:52.6]} 7... d4 {[%clk 0:02:37.6]} 8. Ne4 {[%clk
0:02:51.7]} 8... Ng6 {[%clk 0:02:33]} 9. e3 {[%clk 0:02:37.7]} 9... f5 {[%clk
0:02:17.1]} 10. Neg5 {[%clk 0:02:35.6]} 10... h6 {[%clk 0:02:04.1]} 11. exd4
{[%clk 0:02:35]} 11... hxg5 {[%clk 0:02:01.6]} 12. Bxg5 {[%clk 0:02:00.7]} 12...
Be7 {[%clk 0:01:54.7]} 13. Bxe7 {[%clk 0:01:58.7]} 13... Qxe7 {[%clk 0:01:52.3]}
14. d5 {[%clk 0:01:50.2]} 14... Nd8 {[%clk 0:01:34.7]} 15. Re1 {[%clk
0:01:41.2]} 15... Nf7 {[%clk 0:01:30.5]} 16. d4 {[%clk 0:01:35.7]} 16... cxd4
{[%clk 0:01:15.7]} 17. Nxd4 {[%clk 0:01:32.4]} 17... O-O {[%clk 0:01:16.1]} 18.
Qh5 {[%clk 0:01:20.6]} 18... Qf6 {[%clk 0:01:14.3]} 19. Nb5 {[%clk 0:01:16.2]}
19... Bd7 {[%clk 0:01:09.5]} 20. Nc3 {[%clk 0:01:09.3]} 20... Rac8 {[%clk
0:01:06.7]} 21. b3 {[%clk 0:00:59.9]} 21... e4 {[%clk 0:01:06.9]} 22. Ne2 {[%clk
0:00:53.3]} 22... Nfe5 {[%clk 0:00:55.1]} 23. Rad1 {[%clk 0:00:45]} 23... b5
{[%clk 0:00:43.7]} 24. Nd4 {[%clk 0:00:36.3]} 24... bxc4 {[%clk 0:00:41.4]} 25.
bxc4 {[%clk 0:00:35.5]} 25... Rxc4 {[%clk 0:00:38.7]} 26. Nc6 {[%clk 0:00:31.5]}
26... Bxc6 {[%clk 0:00:34.6]} 27. dxc6 {[%clk 0:00:31.2]} 27... Rxc6 {[%clk
0:00:35.1]} 28. Rd5 {[%clk 0:00:28]} 28... Rd6 {[%clk 0:00:33.2]} 29. Red1
{[%clk 0:00:26.6]} 29... Rfd8 {[%clk 0:00:31.7]} 30. Rxd6 {[%clk 0:00:25.2]}
30... Rxd6 {[%clk 0:00:32.6]} 31. Rxd6 {[%clk 0:00:24.7]} 31... Qxd6 {[%clk
0:00:33.5]} 32. Qe2 {[%clk 0:00:23.2]} 32... Qd3 {[%clk 0:00:30.8]} 33. Qh5
{[%clk 0:00:17.7]} 33... Nf3+ {[%clk 0:00:23.9]} 34. Bxf3 {[%clk 0:00:15.6]}
34... exf3 {[%clk 0:00:24.5]} 35. h3 {[%clk 0:00:13.2]} 35... Qe2 {[%clk
0:00:17]} 0-1

[Event "*** Titled Tuesday Blitz"]
[Site "Chess.com"]
[Date "2021.03.09"]
[Round "1"]
[White "HrvojeZagreb"]
[Black "Ajedrez_con_German"]
[Result "1-0"]
[WhiteElo "2270"]
[BlackElo "2546"]
[TimeControl "180+1"]
[EndTime "10:07:12 PST"]
[Termination "HrvojeZagreb won on time"]

1. d4 {[%clk 0:03:00.9]} 1... e6 {[%clk 0:02:57]} 2. Bf4 {[%clk 0:03:00.6]} 2...
Nf6 {[%clk 0:02:54.7]} 3. e3 {[%clk 0:03:00.4]} 3... b6 {[%clk 0:02:46.3]} 4.
Be2 {[%clk 0:02:59]} 4... Bb7 {[%clk 0:02:41.3]} 5. Bf3 {[%clk 0:02:59]} 5...
Qc8 {[%clk 0:02:39.8]} 6. c4 {[%clk 0:02:48]} 6... Bb4+ {[%clk 0:02:36.8]} 7.
Nc3 {[%clk 0:02:47.7]} 7... Ne4 {[%clk 0:02:33.1]} 8. Rc1 {[%clk 0:02:46.3]}
8... O-O {[%clk 0:02:30.1]} 9. Ne2 {[%clk 0:02:39.7]} 9... d6 {[%clk 0:02:18.9]}
10. a3 {[%clk 0:02:38.1]} 10... Bxc3+ {[%clk 0:02:11.6]} 11. Nxc3 {[%clk
0:02:36.5]} 11... Nxc3 {[%clk 0:02:11.3]} 12. Rxc3 {[%clk 0:02:34.5]} 12... Nd7
{[%clk 0:02:10.7]} 13. O-O {[%clk 0:02:18.9]} 13... Nf6 {[%clk 0:02:10.2]} 14.
b4 {[%clk 0:02:12.4]} 14... Ne4 {[%clk 0:01:54.6]} 15. Rc1 {[%clk 0:01:55.8]}
15... f5 {[%clk 0:01:42.7]} 16. c5 {[%clk 0:01:50.4]} 16... Qd7 {[%clk
0:01:39.6]} 17. Qc2 {[%clk 0:01:41]} 17... Bd5 {[%clk 0:01:34.1]} 18. c6 {[%clk
0:01:28.5]} 18... Qe7 {[%clk 0:01:30.8]} 19. h3 {[%clk 0:01:18.3]} 19... Qf7
{[%clk 0:01:12.3]} 20. Be2 {[%clk 0:01:13.8]} 20... g5 {[%clk 0:01:06]} 21. Bh2
{[%clk 0:01:12.5]} 21... Nf6 {[%clk 0:00:56.6]} 22. f3 {[%clk 0:00:55.3]} 22...
Rae8 {[%clk 0:00:38.2]} 23. Qa4 {[%clk 0:00:46.1]} 23... a5 {[%clk 0:00:35.3]}
24. bxa5 {[%clk 0:00:45.1]} 24... Ra8 {[%clk 0:00:34.9]} 25. a6 {[%clk
0:00:45.2]} 25... Ra7 {[%clk 0:00:31]} 26. Qb4 {[%clk 0:00:38.9]} 26... Rfa8
{[%clk 0:00:25.7]} 27. a4 {[%clk 0:00:38.2]} 27... Qe8 {[%clk 0:00:26]} 28. Bb5
{[%clk 0:00:35.8]} 28... e5 {[%clk 0:00:22]} 29. dxe5 {[%clk 0:00:32]} 29...
dxe5 {[%clk 0:00:22.4]} 30. Rfd1 {[%clk 0:00:29.7]} 30... Bf7 {[%clk 0:00:15.1]}
31. Rd7 {[%clk 0:00:23.6]} 31... Nxd7 {[%clk 0:00:09.4]} 32. cxd7 {[%clk
0:00:24.5]} 32... Qe6 {[%clk 0:00:05.3]} 33. Qc3 {[%clk 0:00:18.5]} 33... c5
{[%clk 0:00:02.1]} 34. Bxe5 {[%clk 0:00:14.4]} 1-0

[Event "*** Titled Tuesday Blitz"]
[Site "Chess.com"]
[Date "2021.03.09"]
[Round "1"]
[White "hermionegrangermagic"]
[Black "norwaytoadog"]
[Result "1-0"]
[WhiteElo "2539"]
[BlackElo "2210"]
[TimeControl "180+1"]
[EndTime "10:07:12 PST"]
[Termination "hermionegrangermagic won on time"]

1. e4 {[%clk 0:02:48.2]} 1... c5 {[%clk 0:02:56.4]} 2. Nf3 {[%clk 0:02:46]} 2...
d6 {[%clk 0:02:56.7]} 3. d4 {[%clk 0:02:41]} 3... cxd4 {[%clk 0:02:57]} 4. Nxd4
{[%clk 0:02:41.9]} 4... Nf6 {[%clk 0:02:56.7]} 5. Nc3 {[%clk 0:02:42.4]} 5... a6
{[%clk 0:02:57]} 6. Be3 {[%clk 0:02:41.4]} 6... e5 {[%clk 0:02:56.8]} 7. Nb3
{[%clk 0:02:40.4]} 7... Be7 {[%clk 0:02:55.3]} 8. Qd2 {[%clk 0:02:38.8]} 8...
Be6 {[%clk 0:02:55.1]} 9. h3 {[%clk 0:02:32.1]} 9... h5 {[%clk 0:02:55.2]} 10.
O-O-O {[%clk 0:02:30.6]} 10... Nbd7 {[%clk 0:02:53]} 11. f4 {[%clk 0:02:25.7]}
11... b5 {[%clk 0:02:38.5]} 12. f5 {[%clk 0:02:25.2]} 12... Bc4 {[%clk
0:02:38.1]} 13. Kb1 {[%clk 0:02:17.2]} 13... Rc8 {[%clk 0:02:27]} 14. Bd3 {[%clk
0:02:03.3]} 14... h4 {[%clk 0:02:20.7]} 15. Rhg1 {[%clk 0:01:50.2]} 15... Qc7
{[%clk 0:01:48.4]} 16. g4 {[%clk 0:01:28.9]} 16... hxg3 {[%clk 0:01:47.5]} 17.
Rxg3 {[%clk 0:01:27.3]} 17... Rh7 {[%clk 0:01:44.1]} 18. Rdg1 {[%clk 0:01:06.9]}
18... Bf8 {[%clk 0:01:43.4]} 19. Nd5 {[%clk 0:01:01.8]} 19... Nxd5 {[%clk
0:01:36.3]} 20. exd5 {[%clk 0:00:56.4]} 20... Nf6 {[%clk 0:01:32.3]} 21. Bg5
{[%clk 0:00:45.8]} 21... Nxd5 {[%clk 0:01:25.3]} 22. Be4 {[%clk 0:00:38.2]}
22... Nf6 {[%clk 0:01:08.3]} 23. Bxf6 {[%clk 0:00:34.7]} 23... gxf6 {[%clk
0:01:07.8]} 24. Na5 {[%clk 0:00:31.2]} 24... d5 {[%clk 0:00:58.9]} 25. Nxc4
{[%clk 0:00:25.3]} 25... dxe4 {[%clk 0:00:52.7]} 26. Ne3 {[%clk 0:00:25.2]}
26... Rd8 {[%clk 0:00:48.1]} 27. Nd5 {[%clk 0:00:24.7]} 27... Qd6 {[%clk
0:00:41.2]} 28. Rd1 {[%clk 0:00:24.3]} 28... Rh8 {[%clk 0:00:30.8]} 29. a4
{[%clk 0:00:23.7]} 29... Bh6 {[%clk 0:00:28.3]} 30. Qg2 {[%clk 0:00:21.8]} 30...
Bf8 {[%clk 0:00:16.1]} 31. Qxe4 {[%clk 0:00:20.6]} 31... Qc6 {[%clk 0:00:06.3]}
32. Rgd3 {[%clk 0:00:15.8]} 32... Rc8 {[%clk 0:00:04.2]} 33. c3 {[%clk
0:00:15.7]} 33... Bh6 {[%clk 0:00:01.8]} 34. Qh4 {[%clk 0:00:12.5]} 1-0

[Event "*** Titled Tuesday Blitz"]
[Site "Chess.com"]
[Date "2021.03.09"]
[Round "1"]
[White "Eloist"]
[Black "NicoChasin"]
[Result "0-1"]
[WhiteElo "2329"]
[BlackElo "2629"]
[TimeControl "180+1"]
[EndTime "10:07:14 PST"]
[Termination "NicoChasin won on time"]

1. e4 {[%clk 0:03:00.5]} 1... c5 {[%clk 0:02:58.9]} 2. d3 {[%clk 0:02:58.4]}
2... Nc6 {[%clk 0:02:56.2]} 3. f4 {[%clk 0:02:58.6]} 3... e5 {[%clk 0:02:55.2]}
4. Nf3 {[%clk 0:02:57.3]} 4... d6 {[%clk 0:02:55.1]} 5. Be2 {[%clk 0:02:57.3]}
5... exf4 {[%clk 0:02:55.1]} 6. Bxf4 {[%clk 0:02:55.8]} 6... Nf6 {[%clk
0:02:55.8]} 7. O-O {[%clk 0:02:55.3]} 7... Be7 {[%clk 0:02:56.2]} 8. Nc3 {[%clk
0:02:46.5]} 8... h6 {[%clk 0:02:54.3]} 9. Qd2 {[%clk 0:02:35.9]} 9... Be6 {[%clk
0:02:45.9]} 10. Kh1 {[%clk 0:02:26.7]} 10... Qd7 {[%clk 0:02:41.8]} 11. d4
{[%clk 0:02:23]} 11... cxd4 {[%clk 0:02:30]} 12. Nxd4 {[%clk 0:02:23.9]} 12...
Nxd4 {[%clk 0:02:30.1]} 13. Qxd4 {[%clk 0:02:23.8]} 13... O-O {[%clk 0:02:30.1]}
14. Rad1 {[%clk 0:02:22.3]} 14... Kh7 {[%clk 0:02:28.6]} 15. Bxd6 {[%clk
0:02:08.8]} 15... Rfd8 {[%clk 0:02:10]} 16. e5 {[%clk 0:02:06.4]} 16... Bxd6
{[%clk 0:02:01.8]} 17. Qxd6 {[%clk 0:01:36.7]} 17... Qxd6 {[%clk 0:01:57.4]} 18.
Rxd6 {[%clk 0:01:36.5]} 18... Rxd6 {[%clk 0:01:56.8]} 19. exd6 {[%clk
0:01:36.6]} 19... Rd8 {[%clk 0:01:56.5]} 20. Rd1 {[%clk 0:01:36.2]} 20... a6
{[%clk 0:01:55.8]} 21. a4 {[%clk 0:01:35.1]} 21... g5 {[%clk 0:01:47.6]} 22. Bf3
{[%clk 0:01:33]} 22... b6 {[%clk 0:01:46]} 23. Kg1 {[%clk 0:01:24.1]} 23... Kg7
{[%clk 0:01:41.5]} 24. Bb7 {[%clk 0:01:19.6]} 24... a5 {[%clk 0:01:40]} 25. h3
{[%clk 0:01:11.6]} 25... Ne8 {[%clk 0:01:32.6]} 26. Bc6 {[%clk 0:00:51.2]} 26...
Nxd6 {[%clk 0:01:28.9]} 27. Ne4 {[%clk 0:00:39]} 27... Nb7 {[%clk 0:01:26.7]}
28. Rxd8 {[%clk 0:00:28.8]} 28... Nxd8 {[%clk 0:01:27.6]} 29. Bb5 {[%clk
0:00:25.6]} 29... Bf5 {[%clk 0:01:27.2]} 30. Bd3 {[%clk 0:00:23.8]} 30... Bxe4
{[%clk 0:01:27]} 31. Bxe4 {[%clk 0:00:23.8]} 31... Kf6 {[%clk 0:01:27.7]} 32.
Kf2 {[%clk 0:00:23.4]} 32... Ke5 {[%clk 0:01:28.3]} 33. Ke3 {[%clk 0:00:23.4]}
33... Ne6 {[%clk 0:01:29]} 34. c3 {[%clk 0:00:18.7]} 34... f5 {[%clk 0:01:27.9]}
35. Bc2 {[%clk 0:00:16.1]} 35... Nf4 {[%clk 0:01:27]} 36. Kf3 {[%clk 0:00:13.8]}
36... Nd5 {[%clk 0:01:25.8]} 37. g3 {[%clk 0:00:12.9]} 37... h5 {[%clk 0:01:25]}
38. Bb3 {[%clk 0:00:12.1]} 38... g4+ {[%clk 0:01:24.7]} 39. hxg4 {[%clk
0:00:11.7]} 39... hxg4+ {[%clk 0:01:25.3]} 40. Kf2 {[%clk 0:00:11.8]} 40... Nf6
{[%clk 0:01:23.3]} 41. Bf7 {[%clk 0:00:09.5]} 41... Ne4+ {[%clk 0:01:23]} 42.
Kg2 {[%clk 0:00:09.6]} 42... Nc5 {[%clk 0:01:23.2]} 43. Be8 {[%clk 0:00:07.8]}
43... Ke4 {[%clk 0:01:21.3]} 44. b4 {[%clk 0:00:07.4]} 44... Nd3 {[%clk
0:01:18]} 45. Bc6+ {[%clk 0:00:04.6]} 45... Ke5 {[%clk 0:01:15.9]} 46. bxa5
{[%clk 0:00:04.7]} 46... bxa5 {[%clk 0:01:15.7]} 47. Bd7 {[%clk 0:00:04.4]}
47... Nc5 {[%clk 0:01:15.1]} 48. Bc6 {[%clk 0:00:04.2]} 48... Kd6 {[%clk
0:01:13]} 49. Bb5 {[%clk 0:00:04.1]} 49... Ne4 {[%clk 0:01:12.5]} 50. c4 {[%clk
0:00:03.2]} 50... Kc5 {[%clk 0:01:11.3]} 51. Kh2 {[%clk 0:00:03.3]} 51... Nd6
{[%clk 0:01:11.4]} 52. Bd7 {[%clk 0:00:02.5]} 52... Kxc4 {[%clk 0:01:11.5]} 53.
Kg2 {[%clk 0:00:01.8]} 53... Kd4 {[%clk 0:01:11.8]} 54. Kf2 {[%clk 0:00:01.9]}
54... Ne4+ {[%clk 0:01:09.3]} 55. Kg2 {[%clk 0:00:02]} 55... Ke5 {[%clk
0:01:09.7]} 56. Bc6 {[%clk 0:00:01]} 56... Nc3 {[%clk 0:01:08.9]} 57. Kh2 {[%clk
0:00:01.2]} 57... Kd4 {[%clk 0:01:07.9]} 58. Kg2 {[%clk 0:00:01.5]} 58... Ke3
{[%clk 0:01:06.8]} 59. Bd7 {[%clk 0:00:01.7]} 59... Ke4 {[%clk 0:01:07.2]} 0-1

[Event "*** Titled Tuesday Blitz"]
[Site "Chess.com"]
[Date "2021.03.09"]
[Round "1"]
[White "serhanberat_ozdemir"]
[Black "pirulillo"]
[Result "1-0"]
[WhiteElo "2563"]
[BlackElo "2255"]
[TimeControl "180+1"]
[EndTime "10:07:14 PST"]
[Termination "serhanberat_ozdemir won on time"]

1. e4 {[%clk 0:03:00.9]} 1... c5 {[%clk 0:02:57.9]} 2. Nf3 {[%clk 0:03:01.2]}
2... e6 {[%clk 0:02:57.6]} 3. c3 {[%clk 0:03:01.4]} 3... Nf6 {[%clk 0:02:51.1]}
4. e5 {[%clk 0:03:01.4]} 4... Nd5 {[%clk 0:02:51.7]} 5. d4 {[%clk 0:03:01.7]}
5... Nc6 {[%clk 0:02:51.2]} 6. c4 {[%clk 0:02:46]} 6... Nb6 {[%clk 0:02:48.8]}
7. d5 {[%clk 0:02:45.9]} 7... Nb4 {[%clk 0:02:24.6]} 8. a3 {[%clk 0:02:40.5]}
8... Na6 {[%clk 0:02:23.7]} 9. Nc3 {[%clk 0:02:41.2]} 9... d6 {[%clk 0:02:10.9]}
10. Bg5 {[%clk 0:02:16.9]} 10... Be7 {[%clk 0:02:08.6]} 11. Bxe7 {[%clk
0:01:47.7]} 11... Qxe7 {[%clk 0:02:09.3]} 12. dxe6 {[%clk 0:01:47.8]} 12... Bxe6
{[%clk 0:01:31.1]} 13. exd6 {[%clk 0:01:36.8]} 13... Qf6 {[%clk 0:01:28.3]} 14.
Be2 {[%clk 0:01:27]} 14... O-O {[%clk 0:01:20.6]} 15. O-O {[%clk 0:01:27.5]}
15... Rfd8 {[%clk 0:01:07.6]} 16. Re1 {[%clk 0:01:03]} 16... Bf5 {[%clk
0:00:56.7]} 17. Nb5 {[%clk 0:00:54.6]} 17... Qxb2 {[%clk 0:00:54.6]} 18. Rc1
{[%clk 0:00:44.9]} 18... Qf6 {[%clk 0:00:43.9]} 19. Bf1 {[%clk 0:00:39.7]} 19...
Bd7 {[%clk 0:00:41.8]} 20. Nc7 {[%clk 0:00:35.4]} 20... Nxc7 {[%clk 0:00:35.1]}
21. dxc7 {[%clk 0:00:36.3]} 21... Rdc8 {[%clk 0:00:35.7]} 22. Ne5 {[%clk
0:00:23.9]} 22... Be6 {[%clk 0:00:32.5]} 23. Qd6 {[%clk 0:00:21.9]} 23... Bf5
{[%clk 0:00:11.1]} 24. Qxc5 {[%clk 0:00:19.9]} 24... Nd7 {[%clk 0:00:11]} 25.
Nxd7 {[%clk 0:00:19.2]} 25... Bxd7 {[%clk 0:00:11.9]} 26. Rcd1 {[%clk
0:00:19.7]} 26... Bc6 {[%clk 0:00:11.3]} 27. Rd6 {[%clk 0:00:14.9]} 27... Qc3
{[%clk 0:00:08.8]} 28. Red1 {[%clk 0:00:14.9]} 28... g6 {[%clk 0:00:06.4]} 29.
Rd8+ {[%clk 0:00:14.9]} 29... Kg7 {[%clk 0:00:05.9]} 30. Qf8+ {[%clk 0:00:14.9]}
30... Kf6 {[%clk 0:00:05.5]} 31. Qh8+ {[%clk 0:00:15.1]} 1-0

[Event "*** Titled Tuesday Blitz"]
[Site "Chess.com"]
[Date "2021.03.09"]
[Round "1"]
[White "night_player"]
[Black "Gulkov_Igor"]
[Result "0-1"]
[WhiteElo "2154"]
[BlackElo "2516"]
[TimeControl "180+1"]
[EndTime "10:07:16 PST"]
[Termination "Gulkov_Igor won by resignation"]

1. e4 {[%clk 0:02:59.2]} 1... c5 {[%clk 0:02:59.5]} 2. c3 {[%clk 0:02:59.1]}
2... Nf6 {[%clk 0:02:59.1]} 3. e5 {[%clk 0:02:59.3]} 3... Nd5 {[%clk 0:02:58.4]}
4. Bc4 {[%clk 0:02:59.8]} 4... Nb6 {[%clk 0:02:57.5]} 5. Bb3 {[%clk 0:02:59.9]}
5... c4 {[%clk 0:02:57.5]} 6. Bc2 {[%clk 0:03:00.2]} 6... Nc6 {[%clk 0:02:57.8]}
7. Nf3 {[%clk 0:03:00.3]} 7... d5 {[%clk 0:02:57.3]} 8. exd6 {[%clk 0:02:55.3]}
8... Qxd6 {[%clk 0:02:56.6]} 9. O-O {[%clk 0:02:55.9]} 9... g6 {[%clk 0:02:56]}
10. Re1 {[%clk 0:02:53.2]} 10... Bg7 {[%clk 0:02:55.8]} 11. h3 {[%clk
0:02:50.5]} 11... O-O {[%clk 0:02:54.6]} 12. b3 {[%clk 0:02:50.3]} 12... Be6
{[%clk 0:02:38.6]} 13. Ng5 {[%clk 0:02:32.8]} 13... Bd5 {[%clk 0:02:34.2]} 14.
Ba3 {[%clk 0:02:28.3]} 14... Qc7 {[%clk 0:02:24]} 15. Be4 {[%clk 0:02:14.1]}
15... Rad8 {[%clk 0:02:16.4]} 16. Qc2 {[%clk 0:02:09.7]} 16... h6 {[%clk
0:02:08.3]} 17. Bxd5 {[%clk 0:02:05.4]} 17... Rxd5 {[%clk 0:02:03.3]} 18. Nf3
{[%clk 0:02:01.6]} 18... Rfd8 {[%clk 0:02:01.1]} 19. Bb2 {[%clk 0:01:37.5]}
19... e5 {[%clk 0:01:59.7]} 20. Na3 {[%clk 0:01:34.4]} 20... Ne7 {[%clk
0:01:39.6]} 21. bxc4 {[%clk 0:01:12.7]} 21... Nxc4 {[%clk 0:01:38.5]} 22. Nxc4
{[%clk 0:01:13.2]} 22... Qxc4 {[%clk 0:01:38.4]} 23. Ba3 {[%clk 0:01:14.1]}
23... Nc6 {[%clk 0:01:21.4]} 24. Qb3 {[%clk 0:01:07.3]} 24... Qxb3 {[%clk
0:01:09.2]} 25. axb3 {[%clk 0:01:08.2]} 25... f5 {[%clk 0:01:08.8]} 26. Bc1
{[%clk 0:00:42.8]} 26... e4 {[%clk 0:01:07.9]} 27. Nh2 {[%clk 0:00:42.3]} 27...
a6 {[%clk 0:01:01.1]} 28. Nf1 {[%clk 0:00:42]} 28... Ne5 {[%clk 0:00:59.9]} 29.
Ba3 {[%clk 0:00:32.9]} 29... Nd3 {[%clk 0:00:56.5]} 30. Red1 {[%clk 0:00:32.2]}
30... R5d7 {[%clk 0:00:56.4]} 31. f3 {[%clk 0:00:26.2]} 31... exf3 {[%clk
0:00:54.9]} 32. gxf3 {[%clk 0:00:26.4]} 32... Nf4 {[%clk 0:00:51.7]} 33. Kh2
{[%clk 0:00:25.1]} 33... Bxc3 {[%clk 0:00:50.5]} 34. Rac1 {[%clk 0:00:22.2]}
34... Be5 {[%clk 0:00:51]} 35. Kh1 {[%clk 0:00:20.4]} 35... Nd3 {[%clk
0:00:48.9]} 36. Kg2 {[%clk 0:00:13.6]} 36... Nxc1 {[%clk 0:00:48.5]} 37. Rxc1
{[%clk 0:00:14.5]} 37... Kf7 {[%clk 0:00:45.7]} 38. Bc5 {[%clk 0:00:12.6]} 38...
Rc8 {[%clk 0:00:44.3]} 39. Ba3 {[%clk 0:00:11.5]} 39... Rxc1 {[%clk 0:00:43.3]}
40. Bxc1 {[%clk 0:00:12.4]} 40... Bf4 {[%clk 0:00:43]} 41. Kf2 {[%clk
0:00:11.4]} 41... Rd3 {[%clk 0:00:41.2]} 42. b4 {[%clk 0:00:11.3]} 42... Rb3
{[%clk 0:00:40.8]} 43. Ke2 {[%clk 0:00:09.2]} 43... Rxb4 {[%clk 0:00:40.5]} 44.
Ba3 {[%clk 0:00:09.7]} 44... Rb3 {[%clk 0:00:39.8]} 45. Bc5 {[%clk 0:00:10]}
45... b6 {[%clk 0:00:39.1]} 46. Bf2 {[%clk 0:00:08.6]} 46... a5 {[%clk
0:00:38.7]} 47. Ne3 {[%clk 0:00:08.1]} 47... Bxe3 {[%clk 0:00:37.9]} 48. Bxe3
{[%clk 0:00:09]} 48... a4 {[%clk 0:00:37.9]} 0-1